Cogmind - Beta 16.1 @@@ ROGUE MODE // 2026.04.20 @ 04:18:28 Player: M4-TR4 Result: Self-destructed Performance ------------- Evolutions (5) 2500 Regions Visited (8) 1600 Robots Destroyed (120) 600 Value Destroyed (4899) 4899 Prototype IDs (18) 360 Alien Tech Used (0) 0 Bonus (79) 79 TOTAL SCORE: 10038 Bonus ------- High Alert Combat Kills 886 Follower Combat Kills 1348 Network Hubs Disabled 200 Registered with UFD 300 Met Optimus in HQ 500 Built Enhanced Grunts 300 Met R17 at Cetus 500 Friendly Fire -3955 Cogmind --------- Core Integrity 298/1000 Matter 157/300 Energy 24/100 System Corruption 0% Temperature Cool (0) Movement Core (400) Ox7 Location -5/Hub_04(d) Parts ------- > --- POWER (2) -------- (None) > --- PROPULSION (4) --- Gravmag System Gravmag System Antigrav System > --- UTILITY (8) ------ Advanced Heat Sink Advanced Cooling System Large Storage Unit Experimental Sensor Array Advanced Signal Interpreter Improved Hacking Suite Improved Hacking Suite Improved System Shield > --- WEAPON (3) ------- (None) > --- INVENTORY (15) --- Quantum Reactor Centrium Heavy Treads Deep Structural Scanner Surveybot 17 Chip Centrium Medium Armor Plating Centrium Medium Armor Plating Centrium Medium Armor Plating Medium Regenerative Plating Advanced Hacking Suite Long-range Tractor Beam Neutron Cannon Railgun Advanced KE Penetrator Advanced KE Penetrator Peak State ------------ > --- POWER ------------ Quantum Reactor Quantum Reactor > --- PROPULSION ------- Improved Treads Medium Treads Centrium Heavy Treads > --- UTILITY ---------- Advanced Heat Sink Advanced Cooling System Large Storage Unit Centrium Medium Armor Plating Centrium Medium Armor Plating Medium Regenerative Plating Improved Hacking Suite Improved Hacking Suite > --- WEAPON ----------- Quantum Rifle Heavy Plasma Cannon Railgun > --- INVENTORY -------- Improved Treads Medium Treads Deep Structural Scanner Experimental Sensor Array Advanced Signal Interpreter Surveybot 17 Chip Layered Medium Armor Plating Centrium Medium Armor Plating Improved Hacking Suite Advanced Hacking Suite Long-range Tractor Beam Advanced KE Penetrator Advanced KE Penetrator Advanced KE Penetrator CPS Tube [Rating: 117] Favorites ----------- Power Light Angular Momentum Engine Engine Light Angular Momentum Engine Power Core Fission Core Reactor Quantum Reactor Propulsion Improved Treads Treads Improved Treads Leg Aluminum Leg Wheel Overtuned Scrapsphere Hover Unit Gravmag System Utility Advanced Heat Sink Device Advanced Heat Sink Storage Large Storage Unit Processor Targeting Computer Hackware Improved Hacking Suite Protection Centrium Medium Armor Plating Weapon KE Penetrator Energy Gun Quantum Rifle Energy Cannon Heavy Phase Cannon Ballistic Gun KE Penetrator Ballistic Cannon Improved Light Cannon Launcher Missile Launcher Special Weapon Mining Laser Impact Weapon Powered Hammer Slashing Weapon Makeshift Sword Build | -11 -10 -10 -7 -5 -5 -5 -5 -5 ------- Run | Yrd Mat Sub Scr Fac Ext Cet Arc Hub Slots Evolved 10 | . . . . 10 . . . . Power 1 | . . . . 1 . . . . Propulsion 2 | . . . . 2 . . . . Utility 6 | . . . . 6 . . . . Weapon 1 | . . . . 1 . . . . Parts Attached 135 | 3 13 . 15 29 41 16 17 1 Power 17 | . 1 . 2 3 7 3 1 . Engine 9 | . 1 . . 2 5 . 1 . Core 4 | . . . 2 1 1 . . . Reactor 4 | . . . . . 1 3 . . Propulsion 29 | 3 3 . 5 2 9 1 5 1 Treads 17 | 1 3 . 1 1 9 1 1 . Leg . | . . . . . . . . . Wheel 5 | 2 . . 2 1 . . . . Hover 7 | . . . 2 . . . 4 1 Flight . | . . . . . . . . . Utility 62 | . 4 . 4 20 18 9 7 . Device 31 | . . . 3 12 9 4 3 . Storage 4 | . 2 . . 1 . 1 . . Processor 5 | . . . . 2 2 . 1 . Hackware 4 | . . . . . 1 . 3 . Protection 18 | . 2 . 1 5 6 4 . . Artifact . | . . . . . . . . . Weapon 27 | . 5 . 4 4 7 3 4 . Energy Gun 2 | . . . . . 1 . 1 . Energy Cannon 3 | . . . . 1 . 1 1 . Ballistic Gun 9 | . . . . 3 3 1 2 . Ballistic Cannon 5 | . 2 . 1 . 1 1 . . Launcher 1 | . . . 1 . . . . . Special Weapon 3 | . 1 . 1 . 1 . . . Impact Weapon 2 | . 1 . . . 1 . . . Slashing Weapon 2 | . 1 . 1 . . . . . Piercing Weapon . | . . . . . . . . . Special Melee Weapon . | . . . . . . . . . Unidentified Prototypes 12 | . . . 1 2 . 8 1 . Corrupted Parts 2 | . . . 1 . . . 1 . System Corruption 9 | . . . 1 . . . 8 . Parts Lost 31 | . 1 . . 7 20 . 1 2 Power 8 | . . . . 1 7 . . . Propulsion 5 | . . . . 1 1 . 1 2 Utility 14 | . 1 . . 4 9 . . . Weapon 4 | . . . . 1 3 . . . Highest Loss Streak 6 | . 1 . . 6 4 . 1 2 To Critical Strikes . | . . . . . . . . . Average Backups 12 | 6 11 15 6 8 13 14 14 12 Power . | 1 1 1 . . . . . 1 Propulsion 2 | 4 3 5 1 1 3 3 1 1 Utility 5 | . 4 5 3 4 5 6 8 8 Weapon 2 | 1 2 4 1 . 3 4 3 2 Tool/Special . | . . . . . . . . . Unused Backups 35 | . 6 . 9 5 4 3 5 3 Power 1 | . . . 1 . . . . . Propulsion 10 | . 2 . 3 1 1 1 2 . Utility 14 | . 3 . 2 4 . 1 1 3 Weapon 10 | . 1 . 3 . 3 1 2 . Tool/Special . | . . . . . . . . . Average Slot Usage (%) 87 | . 99 100 66 79 91 94 92 75 Engine 4 | . 14 14 3 1 4 . 2 3 Core 2 | . . . 6 8 3 . . . Reactor 2 | . . . . . 1 10 5 . Treads 12 | . 27 28 6 1 14 17 8 . Wheel 4 | . . . 7 13 6 . . . Hover 3 | . . . 4 . . . 11 17 Device 14 | . . . 14 18 19 10 15 17 Storage 6 | . 17 14 3 2 5 5 5 5 Processor 3 | . . . . 3 4 11 6 5 Hackware 1 | . . . . . . . 7 17 Protection 8 | . 10 14 1 9 9 17 9 . Energy Cannon 2 | . . . . 4 3 1 3 . Ballistic Gun 7 | . . . 2 11 8 14 8 5 Ballistic Cannon 5 | . 26 28 9 . 1 1 . . Peak Build Rating 117 | 6 12 12 33 89 88 103 117 92 Average Rating 61 | 6 10 12 14 63 73 95 102 77 On Entrance 44 | 6 6 12 12 33 89 69 103 73 Avg Prop Armor Cover (%) 7 | 11 8 . . 9 6 . . . Naked Turns 8 | . . . 8 . . . . . Heaviest Build 117 | 12 41 38 32 76 88 116 117 51 Greatest Support 131 | 16 40 40 40 26 99 126 131 36 Greatest Overweight (x) 30 | 1 2 . 5 4 8 . 30 2 Average Overweight (x) . | . . . . 2 1 . . . Largest Inventory Capacity 15 | 8 15 15 15 15 15 15 15 15 Average Capacity 13 | 8 13 15 7 9 15 15 15 15 Most Carried 15 | 8 15 15 15 15 15 15 15 15 Average Carried 12 | 6 11 15 6 8 14 14 14 13 Final Capacity 15 | 8 15 15 5 15 15 15 15 15 Final Carried 15 | 8 15 15 5 15 15 15 15 15 Scrap Suit Usage (%) 16 | . . . 30 75 12 . . . Parts Cannibalized 15 | . . . . 5 10 . . . Class Distribution -------------------- 34% | Scavenger-Tank 23% | Mutant 9% | Scavenger-Skirmisher 8% | Scavenger-Gunner 5% | Scavenger-Scrapper 4% | Scrapper 3% | Derelict-Scrapper Dominant Class ---------------- Mutant | -10/Materials Mutant | -10/Subcaves Mutant | -7/Scraptown Scavenger-Scrapper | -5/Factory Scavenger-Tank | -5/Extension Scavenger-Tank | -5/Cetus Scavenger-Skirmisher | -5/Archives Scavenger-Mutant | -5/Hub_04(d) Resources | -11 -10 -10 -7 -5 -5 -5 -5 -5 ----------- Run | Yrd Mat Sub Scr Fac Ext Cet Arc Hub Matter Collected 4774 | 232 353 32 243 835 1993 338 691 57 Remotely 481 | . . . . 481 . . . . Salvage Created 5714 | 115 387 . . 1539 2900 196 520 57 Parts 238 | 11 23 . . 61 98 14 29 2 Haulers Intercepted 2 | . 2 . . . . . . . Recyclers Shooed 1 | . . . . 1 . . . . Parts Field Recycled . | . . . . . . . . . Retrieved Matter . | . . . . . . . . . Parts Self-Destructed 4 | . . 4 . . . . . . Prevented . | . . . . . . . . . Parts Restored . | . . . . . . . . . Kills | -11 -10 -10 -7 -5 -5 -5 -5 -5 ------- Run | Yrd Mat Sub Scr Fac Ext Cet Arc Hub Combat Hostiles Destroyed 77 | . 14 . . 21 37 2 2 1 Guns 45 | . . . . 19 23 2 . 1 Cannons 29 | . 14 . . 1 13 . 1 . AOE 1 | . . . . 1 . . . . Classes Destroyed 16 | 2 5 . . 6 3 . . . Worker 8 | . . . . 7 1 . . . Builder 6 | . 1 . . 3 2 . . . Tunneler 3 | 3 . . . . . . . . Hauler 2 | . 2 . . . . . . . Recycler 4 | 1 . . . 1 2 . . . Mechanic 1 | . . . . 1 . . . . Operator 10 | . . . . . 1 . 9 . Watcher 4 | . 1 . . 2 1 . . . Swarmer 8 | . 6 . . . 2 . . . Grunt 47 | . 8 . . 13 26 . . . Brawler 2 | . . . . 2 . . . . Duelist 1 | . . . . . 1 . . . Sentry 8 | . . . . 1 5 . 2 . Hunter 3 | . . . . 1 2 . . . Programmer 5 | . . . . 4 . . . 1 Behemoth 1 | . . . . . 1 . . . Cetus Guard 2 | . . . . . . 2 . . Enhanced Grunt 1 | . . . . . . . 1 . Thug 1 | . . . . . 1 . . . Savage 2 | . . . . . 1 1 . . Best Kill Streak 15 | 2 12 . . 15 7 2 5 1 Combat Bots Only 12 | . 12 . . 12 7 2 1 1 Max Kills in Single Turn 5 | 1 2 . . 5 2 1 1 1 Gunslinging 1 | . . . . . 1 . . . Exploded 1 | . . . . 1 . . . . Melee . | . . . . . . . . . Uniques/NPCs Destroyed 1 | . . . . . . 1 . . A7 (-5/Cetus) Combat | -11 -10 -10 -7 -5 -5 -5 -5 -5 -------- Run | Yrd Mat Sub Scr Fac Ext Cet Arc Hub Hostile Shots Fired 490 | . 73 . . 125 241 7 25 19 Missed 126 | . 23 . . 34 57 . 8 4 Hits 364 | . 50 . . 91 184 7 17 15 Melee 17 | . . . . 6 11 . . . Projectile 347 | . 50 . . 85 173 7 17 15 AOE 1 | . . . . 1 . . . . Critical Strikes 19 | . 1 . . 9 8 1 . . Actively Blocked 2 | . . . . 2 . . . . Damage Taken 7708 | . 537 . . 2179 3923 281 486 302 Core 768 | . 66 . . 299 197 80 50 76 Absorbed by Shields 189 | . . . . . 140 49 . . Redirected to Shielding 47 | . . . . 23 24 . . . Regen/Repaired (Parts) 374 | . . . . 49 92 25 208 . Core Remaining (%) 86 | 100 . . 73 . . . . . Volleys Fired 329 | 10 39 . . 72 134 29 35 10 Largest 3 | 2 2 . . 3 3 3 3 3 Hottest 219 | 60 100 . . 162 204 166 219 105 Shots Fired 800 | 20 74 . . 139 374 69 106 18 Gun 477 | 20 . . . 114 246 29 54 14 Cannon 318 | . 70 . . 25 127 40 52 4 Launcher . | . . . . . . . . . Special 5 | . 4 . . . 1 . . . Kinetic 574 | 10 70 . . 114 267 49 50 14 Thermal 215 | . 4 . . 25 106 20 56 4 Explosive . | . . . . . . . . . Electromagnetic 10 | 10 . . . . . . . . Robot Hit Streak 19 | 3 8 . . 10 17 19 17 11 Robot Miss Streak 6 | 3 3 . . 4 6 2 3 1 Penetration Max 1 | . . . . 1 1 1 1 . Secondary Targets 7 | . . . . 3 4 . . . Max Gunslinging Chain 1 | . . . . 1 1 . . . Shots Hit Robots 489 | 10 37 . . 80 234 52 65 11 Core Hits 244 | 5 20 . . 68 106 19 24 2 Critical Kills 20 | . . . . 3 11 2 3 1 Critical Parts Destroyed 22 | . . . . 5 12 3 2 . Critical Strikes 55 | . 2 . . 8 28 8 8 1 Burn 1 | . . . . . 1 . . . Meltdown 2 | . . . . . 1 . 1 . Destroy 46 | . . . . 8 22 8 7 1 Blast 6 | . 2 . . . 4 . . . Melee Attacks 13 | . 4 . . . 9 . . . Impact 10 | . 1 . . . 9 . . . Slashing 3 | . 3 . . . . . . . Piercing . | . . . . . . . . . Sneak Attacks . | . . . . . . . . . Combat Hostiles . | . . . . . . . . . Follow-up Attacks . | . . . . . . . . . Damage Inflicted 15834 | 133 863 . . 4430 6468 1652 1928 360 Guns 8228 | 133 . . . 2551 3642 779 763 360 Cannons 5969 | . 841 . . 277 2813 873 1165 . Explosions 1579 | . . . . 1579 . . . . Melee . | . . . . . . . . . Ramming 58 | . 22 . . 23 13 . . . Kinetic 9771 | 54 841 . . 2551 4071 1082 812 360 Thermal 5120 | . . . . 1050 2384 570 1116 . Explosive 353 | . . . . 353 . . . . Electromagnetic 532 | 79 . . . 453 . . . . Impact . | . . . . . . . . . Slashing . | . . . . . . . . . Piercing . | . . . . . . . . . Highest Corruption 8 | . . . 1 6 6 6 8 . Average Corruption 5 | . . . 1 3 6 6 5 . Corruption Purged 16 | . . . . 2 . . 14 . Corruption Blocked . | . . . . . . . . . Effects 163 | . . . . 12 104 22 25 . Message Errors 29 | . . . . 3 15 5 6 . Matter Fused 41 | . . . . 2 28 3 8 . Heat Flow Errors 16 | . . . . 2 9 4 1 . Energy Discharges 29 | . . . . 2 21 3 3 . Parts Rejected 4 | . . . . 1 3 . . . Parts Fused 2 | . . . . . 2 . . . Data Loss (minor) 20 | . . . . . 16 3 1 . Data Loss (major) 8 | . . . . 1 4 2 1 . Misfires 7 | . . . . . 3 1 3 . Alerts 3 | . . . . 1 1 . 1 . Weapon Failures 4 | . . . . . 2 1 1 . Overload Shots . | . . . . . . . . . Overflow Damage 418 | . 2 . . 253 79 12 72 . Projectiles 165 | . 2 . . . 79 12 72 . Explosions 253 | . . . . 253 . . . . Melee . | . . . . . . . . . Knockbacks 22 | . 8 . . . 7 5 2 . Impact . | . . . . . . . . . Kinetic 22 | . 8 . . . 7 5 2 . Secondary . | . . . . . . . . . Self-Inflicted Damage 29 | . . . . 29 . . . . Shots 1 | . . . . 1 . . . . Rammed 12 | . 5 . . 3 4 . . . Targets Rammed 13 | . 6 . . 3 4 . . . Kicked . | . . . . . . . . . Crushed 1 | . 1 . . . . . . . Highest Temperature 628 | . 144 . . 628 422 250 324 27 Average Temperature 90 | . 47 . . 127 89 75 104 11 Received Heat Transfer 2439 | . 219 . . 774 1293 18 63 72 Effects 15 | . . . . 9 4 . 2 . Shutdowns 3 | . . . . 2 1 . . . Energy Bleed 3 | . . . . 1 2 . . . Interference 2 | . . . . . . . 2 . Matter Decay 1 | . . . . 1 . . . . Short Circuit 1 | . . . . . 1 . . . Damage (minor) 1 | . . . . 1 . . . . Damage (major) 3 | . . . . 3 . . . . Damage (core) 1 | . . . . 1 . . . . Siege Activations 4 | . . . . . 1 . 3 . Total Turns 41 | . . . . . 9 . 32 . Longest Duration 20 | . . . . . 9 . 20 . Martial Activations . | . . . . . . . . . Shielding Activations . | . . . . . . . . . Robots Disrupted 1 | . . . . 1 . . . . Combat Hostiles . | . . . . . . . . . Robots Corrupted . | . . . . . . . . . Combat Hostiles . | . . . . . . . . . Parts Fried . | . . . . . . . . . Impact Corruptions . | . . . . . . . . . Robots Melted 3 | . . . . . 2 . 1 . Combat Hostiles 2 | . . . . . 1 . 1 . Parts Melted 14 | . . . . 1 7 . 6 . Heat Transferred 6153 | . . . . 846 2812 825 1670 . Parts Sabotaged . | . . . . . . . . . Parts Stolen . | . . . . . . . . . Parts Stripped . | . . . . . . . . . Power Chain Reactions 1 | . . . . 1 . . . . Alert | -11 -10 -10 -7 -5 -5 -5 -5 -5 ------- Run | Yrd Mat Sub Scr Fac Ext Cet Arc Hub Maximum Alert Level 4 | . 1 . . 3 4 3 1 . Low Security (%) 37 | 100 93 . . 48 . . 63 100 Level 1 24 | . 6 . . . 39 . 36 . Level 2 25 | . . . . 36 36 75 . . Level 3 10 | . . . . 14 16 24 . . Level 4 3 | . . . . . 7 . . . Level 5 . | . . . . . . . . . High Security . | . . . . . . . . . Max Security . | . . . . . . . . . Peak Influence 1195 | 10 233 . . 900 1195 848 389 57 Initial 664 | . . . . . 431 664 324 . Average 351 | 2 49 . . 325 546 655 145 20 Influence Increases 4669 | 20 365 . . 1269 2022 634 241 118 Destroy 0b10 Robot/C 2100 | . 280 . . 420 1000 300 80 20 Destroy 0b10 Robot/NC 240 | 20 20 . . 70 75 10 45 . Destroy Leader 312 | . 56 . . 94 132 20 . 10 Allied During Kill 676 | . . . . . 408 253 15 . Successful Hack 43 | . . . . 7 22 7 . 7 Select Force Hacks 50 | . . . . . . . . 50 Disable Machine 570 | . . . . 405 90 . 60 15 Destroy Structure 513 | . 9 . . 258 160 44 26 16 Partial Spotted 15 | . . . . . 15 . . . Lose Combat Pursuer 150 | . . . . 15 120 . 15 . Influence Decreases 4654 | 20 365 . . 388 1715 1010 1053 103 Entered New Map 1462 | . . . . . 450 524 488 . Time Decay 2462 | 20 355 . . 318 745 386 535 103 Lost Part 290 | . 10 . . 70 200 . 10 . Lost Ally 440 | . . . . . 320 100 20 . Squads Dispatched 17 | . 2 . . 6 6 . . 3 Investigation 4 | . . . . 1 2 . . 1 Extermination 1 | . . . . 1 . . . . Reinforcement 9 | . 2 . . 1 4 . . 2 Assault 2 | . . . . 2 . . . . Garrison 1 | . . . . 1 . . . . Intercept . | . . . . . . . . . Searches Triggered . | . . . . . . . . . Construction Impeded 4 | . . . . 1 3 . . . Haulers Reinforced . | . . . . . . . . . Active Scanning Responses . | . . . . . . . . . Cargo Convoy Interrupts 1 | . . . . 1 . . . . Stealth | -11 -10 -10 -7 -5 -5 -5 -5 -5 --------- Run | Yrd Mat Sub Scr Fac Ext Cet Arc Hub Distress Signals 8 | . 2 . . . 4 2 . . Communications Jammed . | . . . . . . . . . Distress Signals . | . . . . . . . . . Times Spotted 160 | . 29 . . 23 70 15 19 4 Peak Tracking Total 11 | . 6 . . 11 9 5 2 2 Tactical Retreats 8 | . . . . 1 6 . 1 . Traps | -11 -10 -10 -7 -5 -5 -5 -5 -5 ------- Run | Yrd Mat Sub Scr Fac Ext Cet Arc Hub Traps Triggered 3 | . 1 . . . 2 . . . Indirectly . | . . . . . . . . . Trap Hack Attempts . | . . . . . . . . . Triggered . | . . . . . . . . . Disarmed . | . . . . . . . . . Reprogrammed . | . . . . . . . . . Reused . | . . . . . . . . . Traps Extracted . | . . . . . . . . . Installed . | . . . . . . . . . Triggered . | . . . . . . . . . Machines | -11 -10 -10 -7 -5 -5 -5 -5 -5 ---------- Run | Yrd Mat Sub Scr Fac Ext Cet Arc Hub Machines Disabled 38 | . . . . 27 6 . 4 1 Max in Single Turn 6 | . . . . 6 1 . 1 1 Garrison Access 1 | . . . . 1 . . . . Network Hub 1 | . . . . . . . . 1 Energy Cycler 1 | . . . . . 1 . . . Machines Repaired . | . . . . . . . . . Machines Dismantled . | . . . . . . . . . Machines Sabotaged 1 | . . . . . . . . 1 Overloaded Fab Kills . | . . . . . . . . . Hacking | -11 -10 -10 -7 -5 -5 -5 -5 -5 --------- Run | Yrd Mat Sub Scr Fac Ext Cet Arc Hub Machines Accessed 16 | . . . 4 3 7 1 . 1 Terminals 10 | . . . . 1 7 1 . 1 Fabricators . | . . . . . . . . . Repair Stations . | . . . . . . . . . Recycling Units 1 | . . . . 1 . . . . Scanalyzers 1 | . . . . 1 . . . . Garrison Access . | . . . . . . . . . Total Hacks 58 | . . . 29 10 15 1 . 3 Successful 45 | . . . 29 8 5 1 . 2 Failed 12 | . . . . 1 10 . . 1 Catastrophic 1 | . . . . . 1 . . . Database Lockouts 1 | . . . . 1 . . . . Manual 12 | . . . . 2 6 1 . 3 Terminals 20 | . . . . 1 15 1 . 3 Fabricators . | . . . . . . . . . Repair Stations . | . . . . . . . . . Recycling Units 2 | . . . . 2 . . . . Scanalyzers 7 | . . . . 7 . . . . Garrison Access . | . . . . . . . . . Terminal Hacks 36 | . . . 29 1 4 1 . 1 Record 30 | . . . 29 . . 1 . . Open Door 5 | . . . . 1 4 . . . Level Access Points 1 | . . . . . . . . 1 Fabricator Hacks . | . . . . . . . . . Repair Station Hacks . | . . . . . . . . . Recycling Unit Hacks . | . . . . . . . . . Scanalyzer 6 | . . . . 6 . . . . Insert Component 2 | . . . . 2 . . . . Analyze 3 | . . . . 3 . . . . Retrieve Study 1 | . . . . 1 . . . . Garrison Access Hacks . | . . . . . . . . . Unauthorized Hacks 3 | . . . . 1 1 . . 1 Terminals 2 | . . . . . 1 . . 1 Botnet 1 | . . . . . 1 . . . Sabotage 1 | . . . . . . . . 1 Fabricators . | . . . . . . . . . Repair Stations . | . . . . . . . . . Recycling Units 1 | . . . . 1 . . . . Fedlink 1 | . . . . 1 . . . . Scanalyzers . | . . . . . . . . . Garrison Access . | . . . . . . . . . Data Cores Recovered . | . . . . . . . . . Used . | . . . . . . . . . Hacking Detections 11 | . . . . 2 7 2 . . Full Trace Events 1 | . . . . . 1 . . . Feedback Events . | . . . . . . . . . Feedback Blocked . | . . . . . . . . . Robot Schematics Acquired . | . . . . . . . . . Robots Built . | . . . . . . . . . Authchips . | . . . . . . . . . Time . | . . . . . . . . . Total Robot Build Rating . | . . . . . . . . . Part Schematics Acquired 2 | . . . . 2 . . . . Parts Built . | . . . . . . . . . Authchips . | . . . . . . . . . Time . | . . . . . . . . . Total Part Build Rating . | . . . . . . . . . Part Studies Acquired 1 | . . . . 1 . . . . Parts Repaired . | . . . . . . . . . Time . | . . . . . . . . . Parts Recycled . | . . . . . . . . . Recycled Matter . | . . . . . . . . . Retrieved Matter . | . . . . . . . . . Retrieved Components . | . . . . . . . . . Parts Scanalyzed 2 | . . . . 2 . . . . Part Schematics Acquired 2 | . . . . 2 . . . . Parts Damaged . | . . . . . . . . . Bothacking | -11 -10 -10 -7 -5 -5 -5 -5 -5 ------------ Run | Yrd Mat Sub Scr Fac Ext Cet Arc Hub Used RIF Installer . | . . . . . . . . . Robots Hacked . | . . . . . . . . . Non-combat . | . . . . . . . . . Combat . | . . . . . . . . . Robot Hacks Applied . | . . . . . . . . . Relay Couplers Released 2 | . . . . 2 . . . . Machine Destruction 2 | . . . . 2 . . . . Fabnet Peak Effective % . | . . . . . . . . . Robots Rewired 19 | . . . . . 19 . . . Allies Hacked . | . . . . . . . . . Hacks Repelled . | . . . . . . . . . Allies | -11 -10 -10 -7 -5 -5 -5 -5 -5 -------- Run | Yrd Mat Sub Scr Fac Ext Cet Arc Hub Total Allies 32 | . . . . . 27 5 . . Largest Group 12 | . . . . . 12 10 2 . Highest-Rated Group 744 | . . . . . 359 744 192 . Highest-Rated Ally 159 | . . . . . 159 159 96 . Initial UFD Resources 47 | . . . . 37 47 47 47 47 Total Orders 9 | . . . . 1 8 . . . STAY 2 | . . . . . 2 . . . ROAM 1 | . . . . . 1 . . . FOLLOW 1 | . . . . . 1 . . . EXPLORE 2 | . . . . . 2 . . . RETURN 3 | . . . . 1 2 . . . Ally Attacks 271 | . . . . . 167 95 9 . Total Damage 6701 | . . . . . 3707 2714 280 . Kills 43 | . . . . . 23 18 2 . Allies Corrupted . | . . . . . . . . . Allies Melted 2 | . . . . . 2 . . . Intel | -11 -10 -10 -7 -5 -5 -5 -5 -5 ------- Run | Yrd Mat Sub Scr Fac Ext Cet Arc Hub Active Infowar (turns) 3536 | . . . 1026 994 . . 1272 244 Sensors 1578 | . . . . 62 . . 1272 244 Terrain 931 | . . . . 931 . . . . Structural 5 | . . . . 3 . . . 2 Seismic 1026 | . . . 1026 . . . . . Robot Analysis Total . | . . . . . . . . . Derelict Logs Recovered 1 | . . 1 . . . . . . Drone Launches 11 | . . . . 2 9 . . . Drone Recoveries 7 | . . . . 2 5 . . . Exploration | -11 -10 -10 -7 -5 -5 -5 -5 -5 ------------- Run | Yrd Mat Sub Scr Fac Ext Cet Arc Hub Turns Passed 11638 | 92 1551 138 1618 1156 3885 908 2007 283 Spaces Moved 6522 | 26 778 65 2108 835 1660 370 495 185 Core 1035 | . . . 1034 . . . 1 . Treads 2695 | . 714 65 180 . 1019 370 347 . Legs . | . . . . . . . . . Wheels 2032 | 26 64 . 466 835 641 . . . Hover 760 | . . . 428 . . . 147 185 Flight . | . . . . . . . . . Fastest Speed 48 | 95 95 160 50 80 100 160 48 48 Average Speed 119 | 97 171 160 67 98 155 160 149 97 Slowest Speed 1550 | 100 320 160 300 110 320 160 1550 176 Overloaded Moves . | . . . . . . . . . Propulsion Burnouts . | . . . . . . . . . Robots Hopped . | . . . . . . . . . Potential Cave-ins . | . . . . . . . . . Cave-ins Triggered . | . . . . . . . . . Exploration Rate (%) 53 | 3 95 5 90 16 96 71 96 12 Regions Visited 8 Branch Regions 6 Pre-discovered Areas 5 | . . . 5 . . . . . Known Exits Taken 2 | . . . . 1 . . 1 . Unknown Exits Taken 6 | 1 1 1 1 . 1 1 . . Scrap Searched 4 | . . . 4 . . . . . Spaces Dug 28 | . 5 . . 15 4 . . 4 Terrain Destroyed 261 | . 8 . . 152 61 17 15 8 Melee 3 | . 2 . . . 1 . . . Projectile 169 | . 6 . . 63 60 17 15 8 AOE 89 | . . . . 89 . . . . Terrain Rammed . | . . . . . . . . . Walls Destroyed . | . . . . . . . . . Machines Disabled . | . . . . . . . . . Actions | -11 -10 -10 -7 -5 -5 -5 -5 -5 --------- Run | Yrd Mat Sub Scr Fac Ext Cet Arc Hub Total 9701 | 72 897 99 2301 1080 2663 628 1689 272 Wait 2211 | 28 26 35 143 105 540 182 1093 59 Move 6514 | 25 777 64 2107 834 1659 369 494 185 Hop . | . . . . . . . . . Pick Up 83 | 3 14 . 11 17 21 6 11 . Fast Attach 91 | . 7 . 12 18 26 13 13 2 Attach 32 | . 2 . 1 6 13 1 4 5 Detach 12 | . . . . 2 1 1 3 5 Swap 65 | 4 10 . 4 9 19 5 10 4 Drop 127 | 2 12 . 23 14 27 21 26 2 Fire 329 | 10 39 . . 72 134 29 35 10 Melee 13 | . 4 . . . 9 . . . Ram . | . . . . . . . . . Kick . | . . . . . . . . . Crush 13 | . 6 . . 3 4 . . . Escape Stasis . | . . . . . . . . . Rewire 211 | . . . . . 210 1 . . Trap . | . . . . . . . . . Miscellaneous . | . . . . . . . . . Route ------- -11/Scrapyard -10/Materials (discovered 6 exits: [*Mat x3] / [*Min x2] / [*Sub]) -10/Subcaves -7/Scraptown (discovered 2 exits: *Fac x2) -5/Factory (discovered 6 exits: Fac x3 / Upp x2 / *Ext) -5/Extension (discovered 3 exits: *Fac x2 / *Cet) -5/Cetus (discovered 2 exits: *Fac / *Arc) -5/Archives (discovered 3 exits: *Fac / *Hub x2) -5/Hub_04(d) (discovered 4 exits: Fac x4) History --------- Turn | Location | Event 8 | -11/Scrapyard | Discovered new exit (range 3) 93 | -11/Scrapyard | Entered Materials 266 | -10/Materials | Discovered new exit (range 14) 273 | -10/Materials | Destroyed 12 combat bots 318 | -10/Materials | Build established: Mutant 447 | -10/Materials | Discovered new exit (range 13) 573 | -10/Materials | Discovered new exit (range 16) 716 | -10/Materials | Discovered new exit (range 11) 1065 | -10/Materials | Discovered new exit (range 16) 1216 | -10/Materials | Discovered new exit (range 10) 1644 | -10/Materials | Entered Subcaves 1645 | -10/Subcaves | Approached by a straggling Scientist 1661 | -10/Subcaves | Learned Materials interactive machine intel 1718 | -10/Subcaves | Shifting Twisted Machinery released Riot Gun 1737 | -10/Subcaves | Scientist uncovered a shortcut to Scraptown 1782 | -10/Subcaves | Entered Scraptown 1784 | -7/Scraptown | System corruption cleaned by C-Scrubber 1870 | -7/Scraptown | Heard Great Nut preacher, LISTEN AND RECITE! 2156 | -7/Scraptown | Released all parts (7) 2244 | -7/Scraptown | Discovered new exit (range 13) 2280 | -7/Scraptown | Visited The Evicted 2368 | -7/Scraptown | Visited Cyclists 2377 | -7/Scraptown | Visited Shadow of the Wyrm 2383 | -7/Scraptown | Visited Cave Peace 2524 | -7/Scraptown | Visited CPS Storage 2558 | -7/Scraptown | Visited UFD Registry 2558 | -7/Scraptown | Registered with UFD as "Hellcoil" 2572 | -7/Scraptown | Visited Infowarlord's Domain 2580 | -7/Scraptown | Found Exp. Sensor Array 2590 | -7/Scraptown | Visited Junk Cannon Lab 2593 | -7/Scraptown | Found Prototype Special Weapon 2593 | -7/Scraptown | Identified Junk Cannon 2605 | -7/Scraptown | Visited Junk Repository 2670 | -7/Scraptown | Visited Curators Association 2678 | -7/Scraptown | Visited DA-N13 Charitable Foundation 2680 | -7/Scraptown | Found DCF Scrap (30 items) 2717 | -7/Scraptown | Visited Scrapoid Pod Storage 2726 | -7/Scraptown | Visited Cartography Club 2739 | -7/Scraptown | Found Surveybot 17 Chip 2762 | -7/Scraptown | Learned location of Storage (-7) 2762 | -7/Scraptown | Learned location of Recycling (-7) 2762 | -7/Scraptown | Learned location of Zion (-6) 2762 | -7/Scraptown | Learned location of Warlord (-4) 2762 | -7/Scraptown | Learned location of Armory (-3) 2762 | -7/Scraptown | Learned 16 Materials zone layouts 2762 | -7/Scraptown | Learned 16 Research zone layouts 2762 | -7/Scraptown | Learned 24 Factory zone layouts 2762 | -7/Scraptown | Learned 12 Upper Caves zone layouts 2762 | -7/Scraptown | Learned 24 Proximity Caves zone layouts 2762 | -7/Scraptown | Learned Storage emergency access door positions 2762 | -7/Scraptown | Learned location of 2 exits from Factory 2762 | -7/Scraptown | Learned location of 3 exits from Factory 2789 | -7/Scraptown | Found Deep Structural Scanner 2835 | -7/Scraptown | Visited LU-1G1's Boring Crew 2844 | -7/Scraptown | Visited Modified Component R&D 2903 | -7/Scraptown | Found Scrap Suit 3196 | -7/Scraptown | Build established: Derelict-Scrapper 3346 | -7/Scraptown | Met Optimus 3346 | -7/Scraptown | Accepted into 0bPrime 3395 | -7/Scraptown | Discovered new exit (range 5) 3400 | -7/Scraptown | Entered Factory 3400 | -5/Factory | Evolved 10 slots: Power x1, Propulsion x2, Utility x6, Weapon x1 3401 | -5/Factory | Identified exit to Upper Caves 3401 | -5/Factory | Identified exit to Extension 3401 | -5/Factory | Identified exit to Factory 3563 | -5/Factory | Loaded intel: 8 recycling unit locations 3978 | -5/Factory | Build established: Scavenger-Scrapper 4301 | -5/Factory | Found Hvy. Insulated Plating 4351 | -5/Factory | Garrison activated, responded to threat 4427 | -5/Factory | Lost 6 parts (1p4u1w) 4443 | -5/Factory | Destroyed 12 combat bots 4452 | -5/Factory | Cargo convoy interrupted 4504 | -5/Factory | Central database locked down 4556 | -5/Factory | Entered Extension 4733 | -5/Extension | Lost 4 parts (1p2u1w) 5158 | -5/Extension | Build established: Scavenger-Tank 5448 | -5/Extension | Lost 4 parts (1p1n2u) 5449 | -5/Extension | Lost 4 allies 5886 | -5/Extension | Rescued a captive Derelict 6247 | -5/Extension | Spotted B-75 Beast 6267 | -5/Extension | Destroyed B-75 Beast 6271 | -5/Extension | Spotted B-75 Beast 6280 | -5/Extension | Allies destroyed B-75 Beast 6315 | -5/Extension | Lost 5 allies 6430 | -5/Extension | Lost 3 allies 6679 | -5/Extension | Allied Derelicts emerged from ambush trap array 7105 | -5/Extension | Rescued a captive Derelict 7107 | -5/Extension | Rescued a captive Derelict 7137 | -5/Extension | Rescued a captive Derelict 7138 | -5/Extension | Rescued a captive Derelict 7149 | -5/Extension | Rescued a captive Derelict 7151 | -5/Extension | Rescued a captive Derelict 7361 | -5/Extension | Lost 4 allies 7395 | -5/Extension | Discovered exit to Factory (range 16) 7395 | -5/Extension | Discovered new exit (range 16) 7485 | -5/Extension | Energy Cycler disabled 7501 | -5/Extension | Disrupted transfer network 7516 | -5/Extension | Lost 3 allies 7544 | -5/Extension | Destroyed 7 combat bots 7576 | -5/Extension | Build established: Scavenger-Gunner 7689 | -5/Extension | Discovered exit to Factory (range 15) 7708 | -5/Extension | Rescued A7 7728 | -5/Extension | Attached CPS modules to A7. 8441 | -5/Extension | Entered Cetus 8441 | -5/Cetus | Accompanied by 7 allies (A7) 8446 | -5/Cetus | Acquired a Cetus Manufacturing Module code from A7 8462 | -5/Cetus | Spotted Cetus Guard 8469 | -5/Cetus | Spotted Cetus Guard 8472 | -5/Cetus | Spotted Cetus Guard 8472 | -5/Cetus | Spotted Cetus Guard 8478 | -5/Cetus | Allies destroyed Cetus Guard 8482 | -5/Cetus | Allies destroyed Cetus Guard 8485 | -5/Cetus | Allies destroyed Cetus Guard 8497 | -5/Cetus | Allies destroyed Cetus Guard 8613 | -5/Cetus | Build established: Scavenger-Tank 8671 | -5/Cetus | Started Cetus Manufacturing Module 8696 | -5/Cetus | Manufactured an Enhanced Grunt 8721 | -5/Cetus | Manufactured an Enhanced Grunt 8746 | -5/Cetus | Manufactured an Enhanced Grunt 8771 | -5/Cetus | Manufactured an Enhanced Grunt 8796 | -5/Cetus | Manufactured an Enhanced Grunt 8832 | -5/Cetus | Discovered new exit (range 15) 8949 | -5/Cetus | Spotted Cetus Guard 8949 | -5/Cetus | Spotted Cetus Guard 8958 | -5/Cetus | Spotted Cetus Guard 8959 | -5/Cetus | Spotted Cetus Guard 8968 | -5/Cetus | Allies destroyed Cetus Guard 8970 | -5/Cetus | Core integrity fell below 50% 8972 | -5/Cetus | Destroyed Cetus Guard 8975 | -5/Cetus | Allies destroyed Cetus Guard 8975 | -5/Cetus | Destroyed Cetus Guard 8986 | -5/Cetus | Discovered exit to Factory (range 15) 8998 | -5/Cetus | Met Revision 17 9000 | -5/Cetus | Lost 3 allies 9191 | -5/Cetus | Security sweep announced 9231 | -5/Cetus | Found Prototype Device 9231 | -5/Cetus | Identified Exp. Thermal Shield 9257 | -5/Cetus | Lost 3 allies 9282 | -5/Cetus | Murdered A7 9285 | -5/Cetus | Extracted ID and sensor layout for unrecognized location from A7's data core 9299 | -5/Cetus | Found Prototype Protection 9299 | -5/Cetus | Identified Med. Regenerative Plating 9349 | -5/Cetus | Entered Archives 9349 | -5/Archives | Accompanied by 2 allies 9520 | -5/Archives | Discovered exit to Factory (range 14) 9650 | -5/Archives | Unable to access archive contents 9666 | -5/Archives | Unable to access archive contents 9669 | -5/Archives | Discovered new exit (range 15) 9998 | -5/Archives | Discovered new exit (range 16) 10085 | -5/Archives | Identified exit to Hub_04(d) 10621 | -5/Archives | Build established: Scavenger-Skirmisher 11356 | -5/Archives | Entered Hub_04(d) 11549 | -5/Hub_04(d) | Network Hub disabled 11639 | -5/Hub_04(d) | Self-destructed Last Messages --------------- (70,23) (40,82) (40,91) (71,68) Map updated. 11549_ Connecting with Terminal... 11549_ ALERT: Network intrusion management efficiency reduced by 20%. Dispatching hub defense squads. All non-combat units evacuate. >>Force(Sabotage) SYSTEM_VULNERABLE[Network Hub] NETWORK_OVERLOAD COORDINATES_RETRIEVED 11549_ ALERT: Suspicious activity at Terminal H002. Dispatching Investigation squad. 11549_ Door malfunctions. 11561_ Dropped Lgt. Angular Momentum Engine. 11561_ Acquired Lgt. Angular Momentum Engine. 11563_ Dropped Lgt. Angular Momentum Engine. 11638_ ALERT: Suspicious intruders detected, dispatching Cutter reinforcements to area. Map ----- +----------------------------------------------------+ | ?????????????????????????????????????????????????? | | ?????????????????????????????????????????????????? | | ?????????????????????????????????????????????????? | | ?????????????????????????????????????????????????? | | ?????????????????????????????????????????????????? | | #########????????????????????????????????????????? | | ? ????????????????????????????????? | | ##+##?????? ????????????????????????????????? | | #?????????# ????????????????????????????????? | | + """ ????# ????????????????????????????????? | | # !!??# ????????????????????????????????? | | ? """ !!#?# ????????????????????????????????? | | ?? #?# ????????????????????????????????? | | ???######## ????????????????????????????????? | | ##### #????????????????????????????????? | | ##### #????###########?????????????????? | | ##### #????# #?????????????????? | | ###### #????# #?????????????????? | | T # #????# #?????????????????? | | / +????# #?????????????????? | | """ #/##+##### #????# #?????????????????? | | """ # ## ###### #?????????????????? | | "" # ! "" / #?????????????????? | | """ # ! #######"# g #?????????????????? | | # #????########g##########????????????? | | " #??????# @ ????????? | | ##############??????# ????????? | | ########### ????????# ????????? | | ########### ????????################+##+?????????? | | ########### ?????????????????????????????????????? | | ?????????????????????????????????????????????????? | | ?????????????????????????????????????????????????? | | ?????????????????????????????????????????????????? | | ?????????????????????????????????????????????????? | | ???????????????????????????????H?????????????????? | | ????????????????????????????????